[Event "Titled Tuesday Blitz May 10 Late 2022"]
[White "Fedoseev, Vladimir"]
[Black "Ibarra Jerez, Jose Carlos"]
[WhiteFideId "24130737"]
[BlackFideId "2226332"]
[WhiteElo "2726"]
[BlackElo "2626"]
[Result "1-0"]
[Round "07"]
[TimeControl "180+1"]
[Date "2022.05.10"]
[WhiteClock "0:00:12"]
[BlackClock "0:00:01"]

1. d4 {[%clk 0:02:59]}  Nf6 {[%clk 0:02:59]} 2. c4 {[%clk 0:02:59]}  d6 {[%clk 0:02:59]} 3. Nf3 {[%clk 0:02:59]}  g6 {[%clk 0:03:00]} 4. g3 {[%clk 0:02:59]}  Bf5 {[%clk 0:02:58]} 5. Nc3 {[%clk 0:02:56]}  Ne4 {[%clk 0:02:58]} 6. Qb3 {[%clk 0:02:53]}  Nxc3 {[%clk 0:02:58]} 7. bxc3 {[%clk 0:02:48]}  Be4 {[%clk 0:02:57]} 8. Bg2 {[%clk 0:02:48]}  Bg7 {[%clk 0:02:57]} 9. O-O {[%clk 0:02:33]}  O-O {[%clk 0:02:57]} 10. a4 {[%clk 0:02:31]}  b6 {[%clk 0:02:57]} 11. Ba3 {[%clk 0:02:12]}  Nc6 {[%clk 0:02:55]} 12. Qa2 {[%clk 0:02:05]}  Qc8 {[%clk 0:02:39]} 13. Rfd1 {[%clk 0:02:03]}  Qa6 {[%clk 0:02:35]} 14. Qb3 {[%clk 0:01:31]}  Na5 {[%clk 0:02:30]} 15. Qb5 {[%clk 0:01:28]}  Qb7 {[%clk 0:01:41]} 16. c5 {[%clk 0:01:21]}  Rfd8 {[%clk 0:01:19]} 17. Rac1 {[%clk 0:01:08]}  Rab8 {[%clk 0:01:00]} 18. cxd6 {[%clk 0:01:05]}  cxd6 {[%clk 0:00:59]} 19. c4 {[%clk 0:00:57]}  Rbc8 {[%clk 0:00:46]} 20. Bh3 {[%clk 0:00:55]}  Rc7 {[%clk 0:00:32]} 21. d5 {[%clk 0:00:51]}  Bxf3 {[%clk 0:00:21]} 22. exf3 {[%clk 0:00:49]}  Qb8 {[%clk 0:00:22]} 23. Bb4 {[%clk 0:00:46]}  Nb7 {[%clk 0:00:21]} 24. f4 {[%clk 0:00:43]}  Nc5 {[%clk 0:00:20]} 25. Bxc5 {[%clk 0:00:42]}  Rxc5 {[%clk 0:00:18]} 26. Qb3 {[%clk 0:00:42]}  Qc7 {[%clk 0:00:19]} 27. Re1 {[%clk 0:00:38]}  a6 {[%clk 0:00:19]} 28. Qe3 {[%clk 0:00:29]}  Bf6 {[%clk 0:00:20]} 29. Bf1 {[%clk 0:00:28]}  Rc8 {[%clk 0:00:18]} 30. Rb1 {[%clk 0:00:27]}  Rb8 {[%clk 0:00:16]} 31. h4 {[%clk 0:00:26]}  Ra5 {[%clk 0:00:16]} 32. Rb4 {[%clk 0:00:24]}  Qc5 {[%clk 0:00:17]} 33. Qxc5 {[%clk 0:00:22]}  dxc5 {[%clk 0:00:14]} 34. Rb3 {[%clk 0:00:22]}  Rxa4 {[%clk 0:00:15]} 35. Reb1 {[%clk 0:00:22]}  Ra1 {[%clk 0:00:11]} 36. Rxa1 {[%clk 0:00:21]}  Bxa1 {[%clk 0:00:12]} 37. Ra3 {[%clk 0:00:22]}  Bd4 {[%clk 0:00:09]} 38. Rxa6 {[%clk 0:00:22]}  Rb7 {[%clk 0:00:10]} 39. Bg2 {[%clk 0:00:20]}  Rb8 {[%clk 0:00:09]} 40. Bf1 {[%clk 0:00:20]}  Rb7 {[%clk 0:00:10]} 41. Kg2 {[%clk 0:00:20]}  Kg7 {[%clk 0:00:09]} 42. g4 {[%clk 0:00:19]}  h6 {[%clk 0:00:08]} 43. Bd3 {[%clk 0:00:18]}  Bf6 {[%clk 0:00:07]} 44. g5 {[%clk 0:00:18]}  hxg5 {[%clk 0:00:08]} 45. fxg5 {[%clk 0:00:18]}  Bd4 {[%clk 0:00:09]} 46. f4 {[%clk 0:00:18]}  e6 {[%clk 0:00:05]} 47. dxe6 {[%clk 0:00:18]}  fxe6 {[%clk 0:00:06]} 48. Kf3 {[%clk 0:00:18]}  Kf7 {[%clk 0:00:06]} 49. Kg4 {[%clk 0:00:18]}  Ke7 {[%clk 0:00:05]} 50. Bxg6 {[%clk 0:00:17]}  b5 {[%clk 0:00:05]} 51. Be4 {[%clk 0:00:18]}  Rb8 {[%clk 0:00:04]} 52. cxb5 {[%clk 0:00:14]}  Rxb5 {[%clk 0:00:04]} 53. h5 {[%clk 0:00:14]}  c4 {[%clk 0:00:04]} 54. h6 {[%clk 0:00:14]}  c3 {[%clk 0:00:04]} 55. h7 {[%clk 0:00:13]}  Rb2 {[%clk 0:00:03]} 56. Ra8 {[%clk 0:00:13]}  c2 {[%clk 0:00:01]} 57. Rc8 {[%clk 0:00:13]}  c1=Q {[%clk 0:00:01]} 58. Rxc1 {[%clk 0:00:13]}  Rh2 {[%clk 0:00:02]} 59. Rc8 {[%clk 0:00:12]}  Bb2 {[%clk 0:00:02]} 60. Rg8 {[%clk 0:00:12]}  Bd4 {[%clk 0:00:02]} 61. g6 {[%clk 0:00:12]}  Bf6 {[%clk 0:00:01]} 62. g7 {[%clk 0:00:12]} 1-0


[Site "https://www.chess.com"]

[Event "Titled Tuesday Blitz May 10 Late 2022"]
[White "Gaisinsky, Adam"]
[Black "Pranav, V"]
[WhiteFideId "2620561"]
[BlackFideId "25060783"]
[WhiteElo "1965"]
[BlackElo "2349"]
[Result "0-1"]
[Round "07"]
[TimeControl "180+1"]
[Date "2022.05.11"]
[WhiteClock "0:00:08"]
[BlackClock "0:00:15"]

1. d4 {[%clk 0:02:59]}  Nf6 {[%clk 0:02:42]} 2. Nf3 {[%clk 0:02:58]}  e6 {[%clk 0:02:41]} 3. Bf4 {[%clk 0:02:59]}  b6 {[%clk 0:02:41]} 4. e3 {[%clk 0:02:58]}  Bb7 {[%clk 0:02:41]} 5. h3 {[%clk 0:02:58]}  Be7 {[%clk 0:02:38]} 6. Nbd2 {[%clk 0:02:58]}  O-O {[%clk 0:02:39]} 7. Bd3 {[%clk 0:02:58]}  c5 {[%clk 0:02:40]} 8. O-O {[%clk 0:02:57]}  d6 {[%clk 0:02:39]} 9. a4 {[%clk 0:02:55]}  Nc6 {[%clk 0:02:35]} 10. c3 {[%clk 0:02:55]}  Re8 {[%clk 0:02:26]} 11. Qe2 {[%clk 0:02:36]}  Bf8 {[%clk 0:02:24]} 12. e4 {[%clk 0:02:32]}  cxd4 {[%clk 0:02:21]} 13. cxd4 {[%clk 0:02:29]}  e5 {[%clk 0:02:20]} 14. dxe5 {[%clk 0:02:26]}  dxe5 {[%clk 0:02:21]} 15. Bg5 {[%clk 0:02:24]}  h6 {[%clk 0:02:21]} 16. Bxf6 {[%clk 0:02:08]}  Qxf6 {[%clk 0:02:22]} 17. Nc4 {[%clk 0:02:06]}  Nb4 {[%clk 0:02:19]} 18. Rfd1 {[%clk 0:01:56]}  Rac8 {[%clk 0:02:15]} 19. a5 {[%clk 0:01:54]}  Bc5 {[%clk 0:02:09]} 20. Ne3 {[%clk 0:01:50]}  Red8 {[%clk 0:02:02]} 21. Ng4 {[%clk 0:01:41]}  Qf4 {[%clk 0:01:59]} 22. Ngxe5 {[%clk 0:01:35]}  Re8 {[%clk 0:01:57]} 23. Bc4 {[%clk 0:01:09]}  Rxe5 {[%clk 0:01:54]} 24. Nxe5 {[%clk 0:01:09]}  Qxe5 {[%clk 0:01:55]} 25. Rd7 {[%clk 0:01:09]}  Bc6 {[%clk 0:01:42]} 26. Rxf7 {[%clk 0:01:05]}  Kh8 {[%clk 0:01:42]} 27. Re1 {[%clk 0:00:53]}  bxa5 {[%clk 0:01:35]} 28. Rf5 {[%clk 0:00:47]}  Qe7 {[%clk 0:01:26]} 29. Rf7 {[%clk 0:00:26]}  Qh4 {[%clk 0:01:22]} 30. Qg4 {[%clk 0:00:21]}  Qxg4 {[%clk 0:01:15]} 31. hxg4 {[%clk 0:00:22]}  Be8 {[%clk 0:01:08]} 32. Rf3 {[%clk 0:00:16]}  Be7 {[%clk 0:01:05]} 33. b3 {[%clk 0:00:16]}  a4 {[%clk 0:01:05]} 34. Be6 {[%clk 0:00:16]}  Rc7 {[%clk 0:00:32]} 35. bxa4 {[%clk 0:00:15]}  Bxa4 {[%clk 0:00:33]} 36. Ra1 {[%clk 0:00:15]}  Be8 {[%clk 0:00:33]} 37. Rb1 {[%clk 0:00:14]}  a5 {[%clk 0:00:32]} 38. Rf5 {[%clk 0:00:13]}  Ra7 {[%clk 0:00:29]} 39. Ra1 {[%clk 0:00:13]}  a4 {[%clk 0:00:28]} 40. Bf7 {[%clk 0:00:12]}  g6 {[%clk 0:00:23]} 41. Rf3 {[%clk 0:00:11]}  Bd7 {[%clk 0:00:22]} 42. Bxg6 {[%clk 0:00:10]}  Bxg4 {[%clk 0:00:19]} 43. Rf7 {[%clk 0:00:10]}  Be6 {[%clk 0:00:19]} 44. Rf3 {[%clk 0:00:09]}  Nc2 {[%clk 0:00:17]} 45. Ra2 {[%clk 0:00:09]}  Bxa2 {[%clk 0:00:16]} 46. Bf7 {[%clk 0:00:08]}  Bxf7 {[%clk 0:00:15]} 47. Rxf7 {[%clk 0:00:08]}  a3 {[%clk 0:00:16]} 48. Kh2 {[%clk 0:00:08]}  Bd6+ {[%clk 0:00:15]} 0-1


[Site "https://www.chess.com"]

[Event "Titled Tuesday Blitz May 10 Late 2022"]
[White "Guz, Ari"]
[Black "Lohani, Sujana"]
[WhiteFideId "2825759"]
[BlackFideId "12311987"]
[WhiteElo "1913"]
[BlackElo "1691"]
[Result "1-0"]
[Round "07"]
[TimeControl "180+1"]
[Date "2022.05.11"]
[WhiteClock "0:02:32"]
[BlackClock "0:02:10"]

1. e4 {[%clk 0:03:00]}  e5 {[%clk 0:02:58]} 2. Nf3 {[%clk 0:03:00]}  Nc6 {[%clk 0:02:58]} 3. Bc4 {[%clk 0:03:00]}  Bc5 {[%clk 0:02:57]} 4. c3 {[%clk 0:03:00]}  d6 {[%clk 0:02:54]} 5. d4 {[%clk 0:03:01]}  exd4 {[%clk 0:02:52]} 6. cxd4 {[%clk 0:03:01]}  Bb4+ {[%clk 0:02:52]} 7. Bd2 {[%clk 0:03:01]}  Nf6 {[%clk 0:02:49]} 8. Bxb4 {[%clk 0:02:51]}  Nxb4 {[%clk 0:02:47]} 9. Bxf7+ {[%clk 0:02:49]}  Kxf7 {[%clk 0:02:39]} 10. Qb3+ {[%clk 0:02:49]}  Be6 {[%clk 0:02:38]} 11. Ng5+ {[%clk 0:02:49]}  Kg6 {[%clk 0:02:36]} 12. Nxe6 {[%clk 0:02:46]}  Qe7 {[%clk 0:02:34]} 13. Nf4+ {[%clk 0:02:45]}  Kg5 {[%clk 0:02:33]} 14. Qg3+ {[%clk 0:02:36]}  Kh6 {[%clk 0:02:26]} 15. Qh4+ {[%clk 0:02:33]}  Nh5 {[%clk 0:02:10]} 16. Qxh5# {[%clk 0:02:32]} 1-0


[Site "https://www.chess.com"]

[Event "Titled Tuesday Blitz May 10 Late 2022"]
[White "Hess, Robert"]
[Black "Hardaway, Brewington"]
[WhiteFideId "2022036"]
[BlackFideId "30941849"]
[WhiteElo "2557"]
[BlackElo "1768"]
[Result "1-0"]
[Round "07"]
[TimeControl "180+1"]
[Date "2022.05.11"]
[WhiteClock "0:00:05"]
[BlackClock "0:00:06"]

1. e4 {[%clk 0:03:00]}  e5 {[%clk 0:02:57]} 2. Nc3 {[%clk 0:03:00]}  Nf6 {[%clk 0:02:56]} 3. Bc4 {[%clk 0:02:42]}  Nc6 {[%clk 0:02:53]} 4. d3 {[%clk 0:02:41]}  Bc5 {[%clk 0:02:53]} 5. f4 {[%clk 0:02:40]}  d6 {[%clk 0:02:48]} 6. Nf3 {[%clk 0:02:40]}  Ng4 {[%clk 0:02:47]} 7. Ng5 {[%clk 0:02:37]}  O-O {[%clk 0:02:09]} 8. f5 {[%clk 0:02:36]}  Nf6 {[%clk 0:02:07]} 9. Nd5 {[%clk 0:01:53]}  h6 {[%clk 0:01:53]} 10. Nxf6+ {[%clk 0:01:40]}  Qxf6 {[%clk 0:01:54]} 11. Qh5 {[%clk 0:01:21]}  Nd4 {[%clk 0:01:45]} 12. h4 {[%clk 0:00:55]}  Nxc2+ {[%clk 0:01:41]} 13. Ke2 {[%clk 0:00:47]}  Nxa1 {[%clk 0:01:41]} 14. Nxf7 {[%clk 0:00:36]}  Qxf7 {[%clk 0:00:43]} 15. Bxf7+ {[%clk 0:00:24]}  Rxf7 {[%clk 0:00:43]} 16. g4 {[%clk 0:00:23]}  Nc2 {[%clk 0:00:43]} 17. g5 {[%clk 0:00:23]}  Nd4+ {[%clk 0:00:43]} 18. Kd1 {[%clk 0:00:18]}  Nxf5 {[%clk 0:00:37]} 19. exf5 {[%clk 0:00:16]}  Bxf5 {[%clk 0:00:38]} 20. gxh6 {[%clk 0:00:13]}  g6 {[%clk 0:00:36]} 21. Qg5 {[%clk 0:00:11]}  Kh7 {[%clk 0:00:35]} 22. Be3 {[%clk 0:00:10]}  Bxe3 {[%clk 0:00:27]} 23. Qxe3 {[%clk 0:00:11]}  b6 {[%clk 0:00:24]} 24. Rg1 {[%clk 0:00:09]}  Rg8 {[%clk 0:00:24]} 25. Kd2 {[%clk 0:00:08]}  Re8 {[%clk 0:00:20]} 26. Rg5 {[%clk 0:00:06]}  Re6 {[%clk 0:00:20]} 27. b3 {[%clk 0:00:05]}  d5 {[%clk 0:00:20]} 28. Qg3 {[%clk 0:00:05]}  e4 {[%clk 0:00:18]} 29. dxe4 {[%clk 0:00:05]}  dxe4 {[%clk 0:00:19]} 30. h5 {[%clk 0:00:04]}  Rd6+ {[%clk 0:00:17]} 31. Ke1 {[%clk 0:00:03]}  Re6 {[%clk 0:00:15]} 32. hxg6+ {[%clk 0:00:03]}  Bxg6 {[%clk 0:00:16]} 33. Re5 {[%clk 0:00:03]}  Ref6 {[%clk 0:00:16]} 34. Qg5 {[%clk 0:00:02]}  Rf1+ {[%clk 0:00:14]} 35. Ke2 {[%clk 0:00:02]}  R7f2+ {[%clk 0:00:12]} 36. Ke3 {[%clk 0:00:02]}  Rf3+ {[%clk 0:00:13]} 37. Kd4 {[%clk 0:00:02]}  Rd1+ {[%clk 0:00:10]} 38. Kc4 {[%clk 0:00:02]}  Rf7 {[%clk 0:00:08]} 39. Kb4 {[%clk 0:00:03]}  c5+ {[%clk 0:00:08]} 40. Ka3 {[%clk 0:00:03]}  Rd3 {[%clk 0:00:08]} 41. Re7 {[%clk 0:00:03]}  Rf3 {[%clk 0:00:08]} 42. Rxf7+ {[%clk 0:00:03]}  Rxf7 {[%clk 0:00:09]} 43. Ka4 {[%clk 0:00:03]}  Rf5 {[%clk 0:00:10]} 44. Qe7+ {[%clk 0:00:03]}  Kxh6 {[%clk 0:00:10]} 45. Qxe4 {[%clk 0:00:03]}  b5+ {[%clk 0:00:10]} 46. Ka5 {[%clk 0:00:03]}  c4 {[%clk 0:00:10]} 47. Qe3+ {[%clk 0:00:03]}  Kg7 {[%clk 0:00:10]} 48. bxc4 {[%clk 0:00:04]}  bxc4+ {[%clk 0:00:11]} 49. Kb4 {[%clk 0:00:04]}  Rf6 {[%clk 0:00:11]} 50. Qxa7+ {[%clk 0:00:04]}  Rf7 {[%clk 0:00:11]} 51. Qd4+ {[%clk 0:00:04]}  Rf6 {[%clk 0:00:12]} 52. Qxc4 {[%clk 0:00:04]}  Bf7 {[%clk 0:00:13]} 53. Qd4 {[%clk 0:00:04]}  Kg6 {[%clk 0:00:13]} 54. a4 {[%clk 0:00:04]}  Kg5 {[%clk 0:00:13]} 55. Qe5+ {[%clk 0:00:04]}  Rf5 {[%clk 0:00:13]} 56. Qg7+ {[%clk 0:00:05]}  Kf4 {[%clk 0:00:13]} 57. a5 {[%clk 0:00:05]}  Bd5 {[%clk 0:00:13]} 58. Qc7+ {[%clk 0:00:05]}  Kf3 {[%clk 0:00:13]} 59. a6 {[%clk 0:00:05]}  Be4 {[%clk 0:00:14]} 60. a7 {[%clk 0:00:05]}  Rf8 {[%clk 0:00:12]} 61. Qb8 {[%clk 0:00:05]}  Rf4 {[%clk 0:00:10]} 62. Kc5 {[%clk 0:00:05]}  Rf5+ {[%clk 0:00:10]} 63. Kd4 {[%clk 0:00:04]}  Rd5+ {[%clk 0:00:10]} 64. Kc4 {[%clk 0:00:05]}  Ra5 {[%clk 0:00:10]} 65. Qb6 {[%clk 0:00:03]}  Ra4+ {[%clk 0:00:10]} 66. Kc3 {[%clk 0:00:03]}  Ra3+ {[%clk 0:00:09]} 67. Kb2 {[%clk 0:00:02]}  Rd3 {[%clk 0:00:09]} 68. Qf6+ {[%clk 0:00:02]}  Kg4 {[%clk 0:00:06]} 69. Qe6+ {[%clk 0:00:02]}  Bf5 {[%clk 0:00:06]} 70. Qg8+ {[%clk 0:00:03]}  Kf4 {[%clk 0:00:05]} 71. a8=Q {[%clk 0:00:03]}  Rd2+ {[%clk 0:00:06]} 72. Kc3 {[%clk 0:00:04]}  Rc2+ {[%clk 0:00:06]} 73. Kb3 {[%clk 0:00:04]}  Rd2 {[%clk 0:00:05]} 74. Qab8+ {[%clk 0:00:04]}  Kf3 {[%clk 0:00:06]} 75. Qgg3+ {[%clk 0:00:04]}  Ke2 {[%clk 0:00:05]} 76. Qbe5+ {[%clk 0:00:05]}  Kd1 {[%clk 0:00:06]} 77. Qge1# {[%clk 0:00:05]} 1-0


[Site "https://www.chess.com"]

[Event "Titled Tuesday Blitz May 10 Late 2022"]
[White "Holt, Conrad"]
[Black "Terry, Renato"]
[WhiteFideId "2034387"]
[BlackFideId "3803457"]
[WhiteElo "2586"]
[BlackElo "2577"]
[Result "1-0"]
[Round "07"]
[TimeControl "180+1"]
[Date "2022.05.10"]
[WhiteClock "0:00:55"]
[BlackClock "0:00:03"]

1. d4 {[%clk 0:03:00]}  d5 {[%clk 0:03:00]} 2. c4 {[%clk 0:03:00]}  c6 {[%clk 0:03:00]} 3. Nc3 {[%clk 0:03:00]}  Nf6 {[%clk 0:03:00]} 4. e3 {[%clk 0:03:01]}  a6 {[%clk 0:03:00]} 5. Nf3 {[%clk 0:02:58]}  b5 {[%clk 0:03:00]} 6. b3 {[%clk 0:02:53]}  Bg4 {[%clk 0:03:00]} 7. Bd2 {[%clk 0:02:53]}  Nbd7 {[%clk 0:02:57]} 8. h3 {[%clk 0:02:52]}  Bh5 {[%clk 0:02:57]} 9. Be2 {[%clk 0:02:48]}  e6 {[%clk 0:02:57]} 10. O-O {[%clk 0:02:47]}  Bd6 {[%clk 0:02:56]} 11. c5 {[%clk 0:02:34]}  Bc7 {[%clk 0:02:55]} 12. b4 {[%clk 0:02:34]}  O-O {[%clk 0:02:38]} 13. a4 {[%clk 0:02:34]}  Bg6 {[%clk 0:02:18]} 14. Ra2 {[%clk 0:02:26]}  e5 {[%clk 0:02:16]} 15. Qa1 {[%clk 0:02:21]}  Rc8 {[%clk 0:01:16]} 16. axb5 {[%clk 0:02:11]}  axb5 {[%clk 0:01:17]} 17. Ra6 {[%clk 0:02:03]}  Nb8 {[%clk 0:01:14]} 18. Ra7 {[%clk 0:02:00]}  Nfd7 {[%clk 0:01:08]} 19. Nxe5 {[%clk 0:01:35]}  Nxe5 {[%clk 0:01:09]} 20. dxe5 {[%clk 0:01:36]}  Bxe5 {[%clk 0:01:08]} 21. f4 {[%clk 0:01:35]}  Bxc3 {[%clk 0:00:56]} 22. Bxc3 {[%clk 0:01:35]}  f6 {[%clk 0:00:57]} 23. f5 {[%clk 0:01:28]}  Bf7 {[%clk 0:00:56]} 24. Bf3 {[%clk 0:01:20]}  Re8 {[%clk 0:00:52]} 25. Re1 {[%clk 0:01:19]}  Nd7 {[%clk 0:00:52]} 26. e4 {[%clk 0:01:09]}  Ne5 {[%clk 0:00:03]} 27. Bxe5 {[%clk 0:01:09]}  Rxe5 {[%clk 0:00:03]} 28. exd5 {[%clk 0:01:07]}  Rxe1+ {[%clk 0:00:03]} 29. Qxe1 {[%clk 0:01:07]}  cxd5 {[%clk 0:00:03]} 30. Rxf7 {[%clk 0:01:03]}  Kxf7 {[%clk 0:00:02]} 31. Qe6+ {[%clk 0:01:03]}  Kf8 {[%clk 0:00:03]} 32. Bxd5 {[%clk 0:01:03]}  Qc7 {[%clk 0:00:01]} 33. Qg8+ {[%clk 0:01:02]}  Ke7 {[%clk 0:00:01]} 34. Qxg7+ {[%clk 0:01:00]}  Ke8 {[%clk 0:00:02]} 35. Qg8+ {[%clk 0:00:59]}  Ke7 {[%clk 0:00:02]} 36. Qxh7+ {[%clk 0:00:59]}  Kd8 {[%clk 0:00:02]} 37. Qg8+ {[%clk 0:00:58]}  Kd7 {[%clk 0:00:02]} 38. Qf7+ {[%clk 0:00:56]}  Kd8 {[%clk 0:00:02]} 39. Qf8+ {[%clk 0:00:56]}  Kd7 {[%clk 0:00:03]} 40. c6+ {[%clk 0:00:55]} 1-0


[Site "https://www.chess.com"]